bitfinex/quotes_ETHUSD_20250420
["timestamp","ask_amount","ask_price","bid_price","bid_amount"]
[1745158225399,0.89298287,1575.3,1575.2,59.6]
[1745158227797,0.34298287,1575.3,1575.2,59.6]
[1745158227999,0.34298287,1575.3,1575.2,65.58319]
[1745158228210,0.55,1575.6,1575.2,65.58319]
[1745158228532,0.55,1575.4,1575.2,65.58319]
[1745158228910,0.55,1575.6,1575.2,65.58319]
[1745158229295,0.55,1575.4,1575.2,65.58319]
[1745158229810,0.55,1575.6,1575.2,65.58319]
[1745158230021,0.34298287,1575.3,1575.2,65.58319]
[1745158230228,0.55,1575.6,1575.2,65.58319]
[1745158230422,0.99265438,1575.6,1575.2,59.6]
[1745158230616,0.55,1575.4,1575.2,59.6]
[1745158230929,0.44265438,1575.6,1575.2,59.6]
[1745158231127,0.34298287,1575.3,1575.2,59.6]
[1745158231323,0.55,1575.6,1575.2,59.6]
[1745158231500,0.55,1575.6,1575.2,65.58319]
[1745158231699,0.55,1575.4,1575.2,65.58319]
[1745158232102,0.55,1575.6,1575.2,65.58319]
[1745158232301,0.52714849,1575.3,1575.2,65.58319]
[1745158232600,0.55,1575.6,1575.2,65.58319]
[1745158232803,0.55,1575.6,1575.2,59.6]
[1745158233000,0.55,1575.4,1575.2,59.6]
[1745158233404,0.55,1575.6,1575.2,59.6]
[1745158233936,0.55,1575.4,1575.2,59.6]
[1745158234535,0.52714849,1575.3,1575.2,59.6]
[1745158234897,0.55,1575.6,1575.2,59.6]
[1745158235203,0.52714849,1575.3,1575.2,59.6]
[1745158235402,0.55,1575.4,1575.2,59.6]
[1745158235602,0.52714849,1575.3,1575.2,59.6]
[1745158241141,0.52714849,1575.3,1575.2,59.8319]
[1745158241514,0.55,1575.6,1575.2,59.8319]
[1745158241728,0.55,1575.6,1575.3,5.98319]
[1745158241928,0.52396876,1575.5,1575.3,5.98319]
[1745158243045,0.52396876,1575.5,1575.4,0.2319]
[1745158244745,0.55,1575.6,1575.4,0.2319]
[1745158245045,0.52651252,1575.5,1575.4,0.2319]
[1745158245244,0.52651252,1575.5,1575.4,0.853409]
[1745158246931,0.7989,1576.1,1575.5,0.2319]
[1745158247174,0.87822349,1576.2,1575.7,0.2319]
[1745158247635,1.03482114,1576.1,1575.7,0.2319]
[1745158247835,0.48482114,1576.1,1575.7,0.2319]
[1745158248035,0.55,1576.0,1575.7,0.78109]
[1745158248236,0.7989,1576.2,1575.7,0.78109]
[1745158248468,0.55,1576.1,1575.7,0.78109]
[1745158248770,1.03482114,1576.1,1575.7,0.78109]
[1745158248944,0.48482114,1576.1,1575.7,0.78109]
[1745158249277,0.55,1576.2,1575.8,0.2319]
[1745158249571,0.48482114,1576.1,1575.8,0.2319]
[1745158249758,0.48482114,1576.1,1575.8,0.83163088]
[1745158249959,6.8557,1576.3,1575.8,0.83163088]
[1745158250160,0.48482114,1576.0,1575.8,0.83163088]
[1745158250363,0.55,1576.2,1575.8,0.83163088]
[1745158250718,0.48482114,1576.1,1575.8,0.83163088]
[1745158251030,0.55,1576.2,1575.8,0.83163088]
[1745158251226,0.48482114,1576.1,1575.8,0.83163088]
[1745158251442,0.55,1576.2,1575.8,0.83163088]
[1745158251653,0.48482114,1576.1,1575.8,0.83163088]
[1745158251932,0.55,1576.2,1575.8,0.83163088]
[1745158252126,0.48482114,1576.0,1575.8,0.83163088]
[1745158252372,0.55,1576.2,1575.8,0.83163088]
[1745158253039,0.8925047,1576.5,1576.0,0.2319]
[1745158253245,0.45591659,1576.4,1576.1,59.597]
[1745158253770,0.45591659,1576.4,1576.2,0.2319]
[1745158254236,0.55,1576.7,1576.2,0.2319]
[1745158254662,0.45795848,1576.6,1576.2,0.2319]
[1745158254866,0.55,1576.5,1576.2,6.21479]
[1745158255167,0.45795848,1576.4,1576.2,6.21479]
[1745158260249,0.45795848,1576.4,1576.2,0.2319]
[1745158260591,1.3632,1576.3,1576.1,54.338]
[1745158260891,1.3632,1576.3,1576.2,5.258]
[1745158261058,1.82345511,1576.3,1576.2,5.258]
[1745158267960,0.46025511,1576.3,1576.2,5.258]
[1745158270304,1.78695511,1576.3,1576.2,5.258]
[1745158270663,1.3267,1576.2,1576.1,54.338]
[1745158270865,1.78695554,1576.2,1576.1,59.596]
[1745158272983,1.01025554,1576.2,1576.1,59.596]
[1745158274197,0.46025554,1576.2,1576.1,59.596]
[1745158274574,0.55,1576.4,1576.1,59.596]
[1745158274769,0.45757558,1576.2,1576.1,65.57879]
[1745158275095,0.7595,1576.5,1576.1,65.57879]
[1745158275295,1.00910707,1576.4,1576.1,59.596]
[1745158279683,1.08840615,1576.4,1576.1,59.596]
[1745158281038,1.00910707,1576.4,1576.1,59.596]
[1745158282307,0.45910707,1576.4,1576.1,59.596]
[1745158282509,1.00910707,1576.4,1576.1,59.596]
[1745158283339,1.00910707,1576.4,1576.1,65.57879]
[1745158283641,1.00910707,1576.4,1576.2,0.2319]
[1745158286100,1.00910707,1576.4,1576.1,65.81069]
[1745158286295,0.55,1576.3,1576.1,65.57879]
[1745158286610,0.55,1576.3,1576.1,59.596]
[1745158286611,0.46076597,1576.2,1576.1,59.596]
[1745158287009,0.55,1576.3,1576.1,59.596]
[1745158287440,0.46076597,1576.2,1576.1,59.596]
[1745158288442,0.46076597,1576.2,1576.1,59.8279]
[1745158288644,0.46076597,1576.2,1576.1,65.81069]
[1745158288836,0.55,1576.4,1576.1,65.81069]
[1745158289037,0.46076597,1576.2,1576.1,65.81069]
[1745158289240,6.95159004,1576.7,1576.1,65.81069]
[1745158289431,0.55,1576.5,1576.2,3.14910832]
[1745158289828,0.55,1576.5,1576.3,0.2319]
[1745158292081,0.55,1576.5,1576.4,5.269]
[1745158294957,0.07929004,1576.7,1576.4,5.269]
[1745158295254,6.07,1576.9,1576.5,0.2319]
[1745158295555,0.83028067,1577.0,1576.5,0.78199]
[1745158295751,0.3928414,1576.9,1576.5,0.78199]
[1745158297123,0.3928414,1576.9,1576.6,0.2319]
[1745158298835,0.3928414,1576.9,1576.6,5.21621883]
[1745158299037,4.26334948,1577.1,1576.7,0.2319]
[1745158299253,4.26334948,1577.1,1576.8,5.269]
[1745158299455,0.3928414,1577.0,1576.9,54.315]
[1745158299761,0.55,1577.2,1576.9,54.315]
[1745158299965,0.3928414,1577.1,1576.9,54.315]
[1745158300336,0.8853301,1577.3,1576.9,54.315]
[1745158300546,0.94962474,1577.2,1576.9,54.315]
[1745158300749,0.94962474,1577.2,1576.9,59.20288812]
[1745158309364,0.39962474,1577.2,1577.0,0.2319]
[1745158309541,0.94962474,1577.2,1577.0,0.2319]
[1745158309952,0.94962474,1577.2,1576.9,59.43478812]
[1745158310152,0.94962474,1577.2,1576.9,54.5469]
[1745158313879,0.39962474,1577.2,1577.1,0.2319]
[1745158315279,0.0869301,1577.3,1577.1,0.2319]
[1745158315460,0.4062801,1577.2,1577.1,0.2319]
[1745158316287,0.4062801,1577.2,1577.0,5.4929]
[1745158316457,0.4062801,1577.2,1577.0,11.47369]
[1745158317293,0.9562801,1577.2,1577.0,5.4929]
[1745158318688,0.4062801,1577.2,1577.0,5.4929]
[1745158319290,0.4062801,1577.2,1577.1,0.2319]
[1745158322786,0.0869301,1577.3,1577.1,0.2319]
[1745158323093,0.41331584,1577.2,1577.1,0.2319]
[1745158323295,0.0869301,1577.3,1577.1,0.78119]
[1745158323597,0.41331584,1577.2,1577.1,0.78119]
[1745158323912,0.0869301,1577.3,1577.1,0.78119]
[1745158324295,0.41318795,1577.2,1577.1,0.78119]
[1745158324498,0.0869301,1577.3,1577.1,0.78119]
[1745158324721,0.41318795,1577.2,1577.1,0.78119]
[1745158325225,0.0869301,1577.3,1577.1,0.78119]
[1745158325434,0.41318795,1577.2,1577.1,0.78119]
[1745158325600,0.0869301,1577.3,1577.1,3.78119]
[1745158325798,0.0869301,1577.3,1577.2,0.610019]
[1745158334532,0.0869301,1577.3,1577.2,5.82623783]
[1745158335309,0.0869301,1577.3,1577.2,8.82623783]
[1745158335514,0.0869301,1577.3,1577.2,10.16751721]
[1745158335714,0.0869301,1577.3,1577.2,9.49325487]
[1745158336010,0.0869301,1577.3,1577.2,8.82623783]
[1745158341212,0.0869301,1577.3,1577.2,3.610019]
[1745158341950,0.0869301,1577.3,1577.2,8.82623783]
[1745158344019,0.0869301,1577.3,1577.2,3.610019]
[1745158345313,0.0869301,1577.3,1577.2,63.175019]
[1745158345721,0.0869301,1577.3,1577.2,62.943119]
[1745158347069,0.0869301,1577.3,1577.2,63.175019]
[1745158349672,0.0869301,1577.3,1577.2,62.943119]
[1745158351055,0.8600301,1577.3,1577.2,62.943119]
[1745158351259,0.8600301,1577.3,1577.2,59.943119]
[1745158352961,0.0869301,1577.3,1577.2,59.943119]
[1745158353966,0.0869301,1577.3,1577.2,63.175019]
[1745158355559,0.0869301,1577.3,1577.2,62.943119]
[1745158360050,0.0869301,1577.3,1577.2,63.175019]
[1745158363892,0.0869301,1577.3,1577.2,8.902019]
[1745158364261,0.0869301,1577.3,1577.2,3.610019]
[1745158365588,0.0869301,1577.3,1577.2,63.174019]
[1745158367384,0.1,1577.4,1577.3,3.0]
[1745158367596,0.1,1577.4,1577.3,9.31513073]
[1745158368387,0.1,1577.4,1577.3,9.77870928]
[1745158369362,0.1,1577.4,1577.3,10.49611465]
[1745158370295,4.26334948,1578.3,1577.4,0.94930537]
[1745158370496,5.53868031,1578.8,1578.3,0.2319]
[1745158370698,5.53868031,1578.8,1578.7,3.0]
[1745158371059,6.35648031,1578.8,1578.3,4.59833377]
[1745158371396,6.35648031,1578.8,1578.4,3.0]
[1745158371562,6.35648031,1578.8,1578.4,3.2319]
[1745158371763,0.4039761,1578.7,1578.4,3.70624842]
[1745158372159,0.4039761,1578.7,1578.5,5.21621883]
[1745158372369,0.4039761,1578.7,1578.4,3.70624842]
[1745158372658,0.4039761,1578.7,1578.4,4.59849515]
[1745158372860,0.7592,1578.6,1577.8,6.13]
[1745158373063,0.7592,1578.6,1578.1,3.0]
[1745158373292,0.4039761,1578.5,1578.1,3.0]
[1745158375393,0.4039761,1578.5,1578.2,59.537]
[1745158375593,0.4039761,1578.5,1578.2,63.16041794]
[1745158376165,0.7592,1578.6,1578.2,63.16041794]
[1745158376565,0.7592,1578.6,1578.4,5.21621883]
[1745158376819,0.7592,1578.8,1578.4,5.21621883]
[1745158376971,0.7592,1578.8,1578.2,68.37663677]
[1745158377176,0.38147087,1578.7,1578.3,1.2451309]
[1745158377469,0.7592,1578.6,1578.3,1.2451309]
[1745158379066,0.7592,1578.7,1578.3,1.2451309]
[1745158379263,0.7592,1578.7,1578.4,5.21621883]
[1745158379518,0.38147087,1578.6,1578.5,3.0]
[1745158379666,0.7592,1578.7,1578.5,4.12162188]
[1745158379868,0.7592,1578.7,1578.6,5.28]
[1745158380903,1.1571818,1578.9,1578.6,5.28]
[1745158381072,0.38147087,1578.7,1578.6,5.28]
[1745158381270,1.1571818,1578.9,1578.6,5.28]
[1745158381615,0.3979818,1578.9,1578.8,5.44811883]
[1745158381907,0.3979818,1578.9,1578.8,8.44811883]
[1745158382676,0.3979818,1578.9,1578.8,8.92870631]
[1745158385495,11.95591303,1579.3,1578.9,0.2319]
[1745158385691,11.95591303,1579.3,1579.2,5.21621883]
[1745158385897,11.95591303,1579.3,1579.2,5.73784071]
[1745158386207,0.048,1579.3,1579.2,6.45525875]
[1745158386611,0.048,1579.3,1579.2,9.45525875]
[1745158387019,0.048,1579.3,1579.2,8.79962188]
[1745158387810,0.048,1579.3,1579.2,9.03152188]
[1745158388307,0.048,1579.3,1579.2,9.88352188]
[1745158388605,0.048,1579.3,1579.2,16.11337776]
[1745158388810,0.048,1579.3,1579.2,10.34715893]
[1745158390399,0.048,1579.3,1579.2,15.56337776]
[1745158390784,0.048,1579.3,1579.2,10.34715893]
[1745158391907,0.048,1579.3,1579.2,10.89715893]
[1745158393076,0.048,1579.3,1579.2,10.34715893]
[1745158393275,0.048,1579.3,1579.2,10.89715893]
[1745158393471,0.048,1579.3,1579.2,10.34715893]
[1745158395374,0.048,1579.3,1579.2,69.83115893]
[1745158395571,0.7884,1580.1,1579.4,0.2319]
[1745158395813,0.7884,1580.1,1579.8,3.0]
[1745158395987,0.7884,1580.1,1579.9,5.276]
[1745158396182,0.7884,1580.1,1580.0,54.208]
[1745158398511,1.16291178,1580.1,1580.0,54.208]
[1745158399607,1.16291178,1580.1,1580.0,54.202]
[1745158399608,1.71291178,1580.1,1580.0,54.202]
[1745158399777,1.16291178,1580.1,1580.0,54.202]
[1745158400481,0.774,1580.1,1580.0,54.202]
[1745158400675,0.774,1580.3,1580.1,3.0]
[1745158400913,0.1,1580.4,1580.1,8.44811883]
[1745158401084,0.1,1580.4,1580.3,8.21621883]
[1745158401289,0.1,1580.4,1580.3,14.55484071]
[1745158401538,0.1,1580.4,1580.3,15.0196764]
[1745158401681,0.874,1580.4,1580.3,5.517]
[1745158401879,1.26124693,1580.4,1580.3,5.517]
[1745158403915,1.81124693,1580.4,1580.3,5.517]
[1745158404080,7.02746576,1580.4,1580.3,5.517]
[1745158404280,0.774,1580.2,1579.5,11.34621883]
[1745158404505,0.774,1580.2,1579.6,4.13462188]
[1745158404915,0.38724693,1580.1,1579.6,4.13462188]
[1745158405112,0.774,1580.2,1579.6,4.13462188]
[1745158405485,0.38724693,1580.1,1579.7,59.705]
[1745158405689,0.774,1580.2,1579.8,3.0]
[1745158405911,0.774,1580.2,1579.8,5.83411508]
[1745158406099,0.39006421,1580.1,1579.8,5.83411508]
[1745158406295,0.774,1580.2,1579.8,5.83411508]
[1745158406916,0.774,1580.0,1579.7,59.705]
[1745158407587,0.39006421,1579.9,1579.7,59.705]
[1745158407814,0.7848,1579.8,1579.7,59.705]
[1745158408206,1.16961361,1579.8,1579.7,59.705]
[1745158409401,1.71961361,1579.8,1579.7,59.705]
[1745158410229,1.16961361,1579.8,1579.7,59.705]
[1745158410725,0.7848,1579.8,1579.7,59.705]
[1745158411226,1.16666731,1579.8,1579.7,59.705]
[1745158411927,1.16615483,1579.8,1579.7,59.705]
[1745158415517,1.71615483,1579.8,1579.7,59.705]
[1745158415718,2.47962234,1579.8,1579.7,59.712]
[1745158418510,0.55,1579.7,1579.0,3.0]
[1745158418739,0.7552,1579.4,1579.0,3.0]
[1745158418923,0.55,1579.3,1578.9,5.0]
[1745158419126,0.7552,1579.2,1578.9,5.0]
[1745158419326,1.12412538,1579.2,1578.9,5.0]
[1745158419526,0.7552,1579.1,1578.9,5.0]
[1745158419732,1.1239972,1579.1,1578.9,5.0]
[1745158420539,0.3687972,1579.1,1578.9,5.5]
[1745158420837,0.7552,1579.3,1578.9,5.5]
[1745158421042,0.3687972,1579.0,1578.9,5.5]
[1745158421218,0.7552,1579.3,1578.9,5.5]
[1745158421719,0.36597678,1579.2,1578.9,5.5]
[1745158421924,0.36597678,1579.2,1579.0,0.55]
[1745158422423,0.36597678,1579.2,1578.9,5.0]
[1745158423350,0.7684,1579.1,1578.9,5.0]
[1745158423511,1.13476143,1579.1,1578.9,5.0]
[1745158424046,0.55,1579.0,1578.9,5.0]
[1745158424245,0.55,1579.0,1578.4,0.2319]
[1745158424543,0.36636143,1578.9,1578.4,0.77671188]
[1745158425046,0.7684,1578.8,1578.4,0.77671188]
[1745158425546,0.36636143,1578.7,1578.5,59.728]
[1745158425746,1.3184,1579.0,1578.5,59.728]
[1745158426056,0.7684,1579.0,1578.6,3.0]
[1745158429730,0.36636143,1578.9,1578.6,3.0]
[1745158429916,0.7684,1579.0,1578.6,3.0]
[1745158432437,0.36636143,1578.9,1578.6,3.0]
[1745158432650,0.7684,1579.0,1578.6,3.0]
[1745158432972,0.8189,1579.1,1578.7,0.2319]
[1745158433174,0.3613611,1578.9,1578.7,0.55509]
[1745158433386,0.8189,1579.1,1578.7,0.32319]
[1745158433550,0.3613611,1578.8,1578.7,0.32319]
[1745158433758,0.8189,1579.1,1578.7,0.32319]
[1745158433963,0.3613611,1578.8,1578.7,0.32319]
[1745158434163,0.8189,1579.1,1578.7,0.32319]
[1745158434374,0.3613611,1578.8,1578.7,0.32319]
[1745158434680,0.8189,1579.1,1578.7,0.32319]
[1745158434851,0.3613611,1579.0,1578.7,0.32319]
[1745158435050,0.8189,1579.1,1578.7,0.32319]
[1745158435251,0.3613611,1579.0,1578.7,0.32319]
[1745158437039,0.8189,1579.1,1578.7,0.32319]
[1745158437360,0.3613611,1579.0,1578.7,0.32319]
[1745158437561,0.3613611,1579.0,1578.6,3.0]
[1745158438072,0.797,1578.9,1578.6,3.0]
[1745158438442,0.3613611,1578.8,1578.6,3.0]
[1745158438643,0.797,1578.9,1578.6,3.0]
[1745158438855,0.3613611,1578.8,1578.6,3.0]
[1745158439056,0.797,1578.9,1578.6,3.0]
[1745158439343,0.3613611,1578.8,1578.6,3.0]
[1745158439568,0.797,1578.9,1578.6,3.0]
[1745158439766,0.3613611,1578.7,1578.6,3.0]
[1745158439967,0.797,1578.9,1578.6,3.0]
[1745158440156,0.3613611,1578.7,1578.6,3.0]
[1745158440340,0.797,1578.9,1578.6,3.0]
[1745158440541,0.3613611,1578.7,1578.6,3.0]
[1745158440774,0.797,1578.9,1578.6,3.0]
[1745158440961,0.3613611,1578.7,1578.6,3.0]
[1745158441151,0.797,1578.9,1578.6,3.0]
[1745158441353,0.3613611,1578.7,1578.6,3.0]
[1745158441675,0.797,1578.9,1578.6,3.0]
[1745158442058,0.3613611,1578.8,1578.6,3.0]
[1745158442386,0.797,1578.9,1578.6,3.0]
[1745158442555,0.797,1578.9,1578.7,5.615]
[1745158443751,1.3631,1578.8,1578.7,5.615]
[1745158446795,1.71856154,1578.8,1578.7,5.615]
[1745158448624,2.49121928,1578.8,1578.7,5.615]
[1745158449412,2.41203958,1578.8,1578.7,5.615]
[1745158450867,1.71856154,1578.8,1578.7,5.615]
[1745158451196,0.90546154,1578.8,1578.7,5.615]
[1745158452001,0.35546154,1578.8,1578.7,5.615]
[1745158452294,0.8131,1579.0,1578.7,5.615]
[1745158452479,0.89172423,1578.9,1578.8,5.616]
[1745158454307,1.70482423,1578.9,1578.8,5.616]
[1745158454498,2.4761026,1578.9,1578.8,5.616]
[1745158456814,1.9261026,1578.9,1578.8,5.616]
[1745158457013,2.4761026,1578.9,1578.8,5.616]
[1745158460015,2.39692854,1578.9,1578.8,5.616]
[1745158462622,7.61314737,1578.9,1578.8,5.616]
[1745158465122,16.68314737,1578.9,1578.8,5.616]
[1745158467220,16.13314737,1578.9,1578.8,5.616]
[1745158467390,16.68314737,1578.9,1578.8,5.616]
[1745158470230,10.10382854,1578.9,1578.8,5.616]
[1745158470536,10.73300214,1578.9,1578.8,5.616]
[1745158473443,11.49130214,1578.9,1578.8,59.856]
[1745158481170,10.65382854,1578.9,1578.8,59.856]
[1745158481354,10.82730026,1578.9,1578.8,59.856]
[1745158481553,11.15692594,1578.9,1578.8,59.856]
[1745158481865,17.49044927,1578.9,1578.8,59.856]
[1745158482025,11.07774991,1578.9,1578.8,59.856]
[1745158482225,11.15693474,1578.9,1578.8,59.856]
[1745158482425,13.4275852,1578.9,1578.8,59.856]
[1745158482664,13.34840037,1578.9,1578.8,59.856]
[1745158483351,19.6819237,1578.9,1578.8,59.856]
[1745158488378,6.33460757,1578.7,1578.4,54.247]
[1745158488551,7.50860096,1578.6,1578.5,5.567]
[1745158488760,17.43995188,1578.6,1578.5,5.567]
[1745158488967,17.36075092,1578.6,1578.5,5.567]
[1745158490146,23.69547789,1578.6,1578.5,5.567]
[1745158491055,22.88607789,1578.6,1578.5,5.567]
[1745158491262,10.68382828,1578.5,1578.4,54.247]
[1745158491470,1.3487,1578.2,1577.8,0.2319]
[1745158491656,0.55,1578.0,1577.9,5.495]
[1745158492068,0.87927005,1578.0,1577.9,5.495]
[1745158492781,9.86548888,1578.0,1577.9,5.495]
[1745158493083,9.09548888,1578.0,1577.9,5.495]
[1745158493893,0.87927005,1578.0,1577.9,5.495]
[1745158495392,0.87927005,1578.0,1577.9,59.75]
[1745158496060,6.09548888,1578.0,1577.9,59.75]
[1745158496886,0.87927005,1578.0,1577.9,59.75]
[1745158498355,6.49133846,1578.0,1577.9,59.75]
[1745158498555,7.29933846,1578.0,1577.9,59.75]
[1745158499693,10.29933846,1578.0,1577.9,59.75]
[1745158500863,10.37856683,1578.0,1577.9,59.75]
[1745158501912,10.70840918,1578.0,1577.9,59.75]
[1745158502056,23.11554479,1578.0,1577.9,59.75]
[1745158502252,23.03631642,1578.0,1577.9,59.75]
[1745158502867,16.69918081,1578.0,1577.9,59.75]
[1745158503068,16.69918081,1578.0,1577.9,54.255]
[1745158503305,16.69918081,1578.0,1577.9,59.752]
[1745158504670,23.03631642,1578.0,1577.9,59.752]
[1745158508876,16.69918081,1578.0,1577.9,59.752]
[1745158509077,23.03631642,1578.0,1577.9,59.752]
[1745158513712,0.55,1577.8,1577.5,54.279]
[1745158513915,0.55,1577.6,1577.5,54.279]
[1745158514102,0.55,1577.6,1577.5,59.777]
[1745158514506,0.84393363,1577.6,1577.5,59.777]
[1745158518615,6.91393363,1577.6,1577.5,59.777]
[1745158518993,9.91393363,1577.6,1577.5,59.777]
[1745158519194,11.43487338,1577.6,1577.5,59.777]
[1745158519396,11.51412004,1577.6,1577.5,59.777]
[1745158525711,12.29502004,1577.6,1577.5,59.777]
[1745158526227,11.51412004,1577.6,1577.5,59.777]
[1745158526427,0.7809,1576.9,1576.2,0.2319]
[1745158526626,0.7809,1576.9,1576.2,5.6809]
[1745158526627,5.21621883,1576.6,1576.2,5.6809]
[1745158526921,0.0793107,1576.8,1576.4,0.2319]
[1745158527416,0.55,1576.6,1576.4,0.2319]
[1745158527724,0.55,1576.6,1576.3,2.25744793]
[1745158527725,3.079286,1577.0,1576.5,54.5179]
[1745158527924,0.55,1576.9,1576.5,56.77534793]
[1745158528227,0.07928199,1576.8,1576.6,59.735]
[1745158528408,0.07928199,1576.8,1576.6,54.286]
[1745158528613,0.07928199,1576.8,1576.7,5.449]
[1745158531831,0.5611351,1576.8,1576.7,5.449]
[1745158532137,0.07928199,1576.8,1576.7,5.449]
[1745158532529,0.55,1576.5,1576.1,0.1]
[1745158532733,5.21621883,1576.2,1576.1,0.1]
[1745158532939,8.76621883,1576.2,1576.1,0.1]
[1745158533084,8.84553451,1576.2,1576.1,0.1]
[1745158533527,9.32363539,1576.2,1576.1,0.1]
[1745158534429,9.24431971,1576.2,1576.1,0.1]
[1745158534626,10.17668325,1576.2,1576.1,0.1]
[1745158536688,10.55623224,1576.2,1576.1,0.1]
[1745158539229,16.90060478,1576.2,1576.1,0.1]
[1745158539427,10.55623224,1576.2,1576.1,0.1]
[1745158539726,10.63555442,1576.2,1576.1,0.1]
[1745158540732,10.55623224,1576.2,1576.1,0.1]
[1745158542140,16.62623224,1576.2,1576.1,0.1]
[1745158545212,16.62623224,1576.2,1576.1,54.427]
[1745158548432,15.6938687,1576.2,1576.1,54.427]
[1745158550031,15.6938687,1576.2,1576.1,59.881]
[1745158556149,22.3468687,1576.2,1576.1,59.881]
[1745158556333,15.6938687,1576.2,1576.1,59.881]
[1745158562147,10.47764987,1576.2,1576.1,59.881]
[1745158562351,11.52541486,1576.2,1576.1,59.881]
[1745158562849,10.47764987,1576.2,1576.1,59.881]
[1745158563220,0.37954899,1576.2,1576.1,59.881]
[1745158563551,6.14930515,1576.4,1576.1,60.1078]
[1745158563753,0.86993295,1576.2,1576.1,60.1078]
[1745158563920,6.62642456,1576.4,1576.1,60.1078]
[1745158564121,0.55,1576.2,1576.1,60.1078]
[1745158564419,0.31993295,1576.3,1576.2,0.2268]
[1745158564932,6.07,1576.4,1576.2,0.2268]
[1745158565133,0.31993295,1576.3,1576.2,0.2268]
[1745158565449,6.14929667,1576.7,1576.2,0.2268]
[1745158565861,0.55,1576.5,1576.2,0.2268]
[1745158566029,0.31993295,1576.6,1576.2,0.2268]
[1745158566358,0.31993295,1576.5,1576.2,0.2268]
[1745158566535,0.3992296,1576.5,1576.2,0.2268]
[1745158571052,0.55,1576.4,1576.1,59.881]
[1745158571257,0.55,1576.2,1576.1,60.1078]
[1745158571658,0.86993295,1576.2,1576.1,60.1078]
[1745158571849,0.86993295,1576.2,1576.1,59.881]
[1745158572049,1.26485695,1576.2,1576.1,59.881]
[1745158572243,1.26485695,1576.2,1576.1,54.427]
[1745158572453,7.27007578,1576.2,1576.1,60.023]
[1745158573346,0.86993295,1576.2,1576.1,60.2498]
[1745158574234,0.31993295,1576.2,1576.1,60.2498]
[1745158574647,6.14930403,1576.5,1576.2,0.2268]
[1745158574847,0.55,1576.4,1576.2,0.2268]
[1745158575263,6.07,1576.5,1576.2,0.2268]
[1745158576145,0.55,1576.4,1576.2,0.2268]
[1745158580451,0.62929763,1576.4,1576.2,0.2268]
[1745158581371,0.55,1576.4,1576.2,0.2268]
[1745158581693,0.33363692,1576.3,1576.2,0.2268]
[1745158584580,0.88363692,1576.3,1576.1,60.023]
[1745158584759,0.96293596,1576.3,1576.1,60.023]
[1745158584973,0.33363692,1576.3,1576.1,60.023]
[1745158585351,0.33363692,1576.3,1576.2,1.4]
[1745158585968,6.95363692,1576.3,1576.2,1.4]
[1745158586270,7.71193123,1576.3,1576.2,1.4]
[1745158586475,0.55,1576.2,1576.1,60.023]
[1745158586656,0.62931405,1576.2,1576.1,60.023]
[1745158586971,1.74995097,1576.2,1576.1,60.023]
[1745158587374,16.0361698,1576.2,1576.1,60.023]
[1745158587576,17.63630216,1576.2,1576.1,60.023]
[1745158589176,18.10764957,1576.2,1576.1,60.023]
[1745158590469,18.4376146,1576.2,1576.1,60.023]
[1745158590966,18.10764957,1576.2,1576.1,60.023]
[1745158596087,12.89143074,1576.2,1576.1,60.023]
[1745158596287,6.40363692,1576.2,1576.1,60.023]
[1745158596589,0.3246871,1576.2,1576.1,60.023]
[1745158596975,3.07930668,1576.4,1576.1,60.023]
[1745158597190,0.32319575,1576.2,1576.1,60.023]
[1745158597491,3.07930668,1576.4,1576.1,60.023]
[1745158597651,0.55,1576.2,1576.1,60.023]
[1745158597982,0.87319575,1576.2,1576.1,60.2498]
[1745158598370,6.14930212,1576.5,1576.1,60.2498]
[1745158598557,0.32759156,1576.2,1576.1,60.2498]
[1745158598787,6.14930212,1576.5,1576.1,60.2498]
[1745158599083,0.32759156,1576.2,1576.1,60.2498]
[1745158599489,0.55,1576.4,1576.1,60.2498]
[1745158599891,0.55,1576.2,1576.1,60.2498]
[1745158600401,0.32759156,1576.2,1576.1,60.2498]
[1745158600764,6.14930212,1576.5,1576.2,0.2268]
[1745158600982,6.07,1576.5,1576.2,0.2268]
[1745158601361,0.55,1576.4,1576.2,0.2268]
[1745158605400,0.55,1576.4,1576.3,1.4]
[1745158611902,0.88237413,1576.4,1576.3,1.4]
[1745158612901,0.88237413,1576.4,1576.3,6.947]
[1745158613090,0.88237413,1576.4,1576.3,7.66438]
[1745158614902,0.33237413,1576.4,1576.3,6.947]
[1745158615068,0.33237413,1576.4,1576.3,7.1738]
[1745158615267,6.07,1576.7,1576.3,7.1738]
[1745158615468,6.69928055,1576.7,1576.3,7.1738]
[1745158615673,6.62,1576.7,1576.3,7.1738]
[1745158615887,0.30694642,1576.6,1576.4,0.71738]
[1745158616395,0.85694642,1576.5,1576.4,0.71738]
[1745158617002,0.55,1576.4,1576.3,7.1738]
[1745158617506,0.30694642,1576.5,1576.3,7.1738]
[1745158617699,0.55,1576.6,1576.3,7.1738]
[1745158617896,0.30694642,1576.4,1576.3,7.1738]
[1745158619022,0.55,1576.6,1576.3,7.1738]
[1745158619321,0.55,1576.6,1576.3,7.89118]
[1745158619518,0.30694642,1576.5,1576.3,7.89118]
[1745158620209,0.30694642,1576.5,1576.4,54.5458]
[1745158622010,0.30694642,1576.5,1576.4,54.319]
[1745158623513,0.30694642,1576.5,1576.4,54.5458]
[1745158623822,0.30694642,1576.5,1576.4,58.69696884]
[1745158626431,0.30694642,1576.5,1576.4,54.5458]